{"text_format":"1","workbook":"xlsx","n_sheets":7,"sheets":["Arbeitsschritte","EUP","Längerfristiges","Erklärungen","Tabelle1","Tabelle2","Parameter"],"not_rendered":{"charts":0,"images":4,"macros":1,"external_links":0,"defined_names":11,"comments":0,"pivot_tables":0},"unopened":[],"bounds":{"document_bytes":16777216,"sheet_cells":100000,"rows_first":2000,"rows_last":500,"rows_between":2000,"halvings":0,"cell_chars":16384,"cell_head_chars":4096},"cells_cut":0,"cells_raw":0,"read":"whole","date_system":"1900"}

{"sheet":"Arbeitsschritte","index":0,"n_rows":22,"n_cols":2,"rows_kept":22,"cut":false,"hidden":true,"merged":[]}
["Aktivitätenmappe"]
[null,"Beschriftungszeilen anpassen für Einfügung von Aktivitäten (Maßnahmen, Teilvorhaben)"]
[null,"Teil VORHABEN"]
[null,"\"Ans Ende stellen\" ermöglichen"]
[null,"Formatierungen: Rahmen, Ausrichtung, Spaltenbreiten, optimale Zeilenhöhe"]
[null,"Restspalten, z.B. Datum"]
[null,"Status schärfen"]
[null,"Bearbeiten und Löschen von Aktivitäten mit Zieleinfügemaske?"]
[null,"Neunumerierung von Aktivitäten"]
["Zusammenfassungsmappe"]
[null,"Datenzeilenende beachten, damit nicht endlos Zeilen zwischen den EUPS eingefügt werden (ev. Abhängig von Verschmelzungen irgendwo unten)"]
[null,"Formatierungen"]
[]
["Aufgabenverteilungskalender"]
[null,"Langtext per Kommentar "]
[null,"ev. Makro statt Formeln für Generierung - jedenfalls atenende beachten"]
[null,"Rahmen"]
[]
["persönlicher Kalender"]
[null,"neu erstellen"]
[]
["Druckformulare"]

{"sheet":"EUP","index":1,"n_rows":15,"n_cols":22,"rows_kept":15,"cut":false,"hidden":false,"merged":[[12,5,14,5],[4,0,11,0],[4,1,11,1],[4,2,11,2],[4,3,8,3],[4,4,8,4],[4,5,8,5],[9,3,11,3],[9,4,11,4],[9,5,11,5],[12,0,14,0],[12,1,14,1],[12,2,14,2],[12,3,14,3],[12,4,14,4],[2,12,3,12],[2,13,3,13],[2,0,2,2],[2,3,2,5],[2,6,2,9],[2,10,3,10],[2,11,3,11],[0,0,0,6],[0,7,0,9],[0,10,0,15],[1,0,1,2],[1,3,1,15],[2,21,3,21],[1,19,1,21],[1,16,1,18],[2,16,3,16],[2,17,3,17],[2,14,3,14],[2,15,3,15],[2,18,3,18],[2,19,3,19],[2,20,3,20]]}
["EUP Fachschule My Way inkl. Fachschultag",null,null,null,null,null,null,"verantwortlich:",null,null,"Judith Dinhobl",null,null,null,null,null,null,null,null,"",""]
["PLAN",null,null,"DO",null,null,null,null,null,null,null,null,null,null,null,null,"CHECK",null,null,"ACT"]
["Ziel",null,null,"Maßnahme",null,null,"Teilvorhaben",null,null,null,"Status","Status Ist","geplanter Start","tatsächli-cher Start","geplante Erledigung bis","tatsächliche Erledigung bis","falls Evaluation geplant: bis","tatsächlich evaluiert","Indikator","Messer-gebnisse","Konsequenzen für den nächsten Planungszyklus","Umgesetzt?"]
["Code","Text","zuständig","Code","Text","zuständig","Code","Text","Code ges.","zuständig"]
["Z1","Durch das Zurverfügungstellen von Handreichungen sollen die L/L in ihrer pädagogischen Arbeit unterstützt werden ","JD","M1","Erstellen einer Handreichung \"Selbstorganisation der FachschülerInnen verbessern\"","JD","T1","Sammeln von Ideen beim FSK- Workshop ","Z1M1T1","FSK","in Planung",null,"Sep 2018","?","Sep 2018","?","?","?","","","","nein"]
[null,null,null,null,null,null,"T2","Ausformulieren der Ideen und Layout","Z1M1T2","JD","in Planung",null,"Okt 2018","?","Apr 2019","?","?","?","","","","nein"]
[null,null,null,null,null,null,"T3","Korrekturlesen","Z1M1T3","AMV","in Planung",null,"Apr 2019","?","Jun 2019","?","?","?","","","","nein"]
[null,null,null,null,null,null,"T4","Handreichung für den Gebrauch zur Verfügung stellen","Z1M1T4","AMV","in Planung",null,"Jun 2019","?","Jun 2019","?","?","?","","","","nein"]
[null,null,null,null,null,null,"T5","Kurzeinführung zum Thema Selbstorganisation der FachschülerInnen","Z1M1T5","AMV","in Planung",null,"Sep 2019","?","Sep 2019","?","?","?","","","","nein"]
[null,null,null,"M2","Aktualisieren der Handreichung \"Außerschulische Partner\"","JD","T1","Überprüfen der Kontaktdaten der außerschulischen Partner","Z1M2T1","JD","in Planung",null,"Sep 2019","?","Apr 2020","?","?","?","","","","nein"]
[null,null,null,null,null,null,"T2","Korrigieren ggf. ","Z1M2T2","JD","in Planung",null,"Sep 2019","?","Apr 2020","?","?","?","","","","nein"]
[null,null,null,null,null,null,"T3","Version 2.0 zur Verfügung stellen","Z1M2T3","JD","in Planung",null,"Jun 2020","?","Jun 2020","?","?","?","","","","nein"]
["Z2","Die FachschülerInnen sollen in der Schulwahl bestärkt werden und sie sollen den Nutzen und die Sinnhaftigkeit ihrer Ausbildung erkennen.","","M1","Planung und Abhaltung des Fachschultags 2019","","T1","Sammeln von Ideen zur Gestaltung des FS-Tags 2019 beim FSK-Workshop","Z2M1T1","FSK","in Planung",null,"Sep 2018","?","Sep 2018","?","?","?","","","","nein"]
[null,null,null,null,null,null,"T2","Umsetzung des Planungskonzepts des Fachschultags 2019","Z2M1T2","JD","in Planung",null,"Okt 2018","?","Jan 2019","?","?","?","","","","nein"]
[null,null,null,null,null,null,"T3","Evaluierung des Fachulprojekts My Way inkl. Fachschultag","Z2M1T3","JD","in Planung",null,"Mrz 2019","?","Mai 2019","?","?","?","","","","nein"]

{"sheet":"Längerfristiges","index":2,"n_rows":10,"n_cols":1,"rows_kept":10,"cut":false,"hidden":false,"merged":[]}
["mittel- und langfristige Entwicklungsziele:"]
["Durch Optimierung der Ausbildung gelingt mehr SchülerInnen ein erfolgreicher Abschluss sowie ein guter Einstieg ins Berufsleben oder in eine weiterführende Ausbildung."]
[]
[]
[]
[]
[]
[]
["Rückblick und Iststand:"]
["In den letzten Jahren haben sich die Rahmenbedingungen in der Fachschule immer mehr verändert. Es ist daher notwendig die pädagogische Arbeit an die gegebenen Situationen anzupassen. Die erfolgreiche Arbeit der letzten Schulprogrammperiode soll weitergeführt werden."]

{"sheet":"Erklärungen","index":3,"n_rows":98,"n_cols":2,"rows_kept":98,"cut":false,"hidden":false,"merged":[[60,0,60,1],[17,0,18,1],[57,0,57,1]]}
["Nach dem Aufruf des Sheets oben \"Bearbeitung aktivieren\" anklicken, damit die Makros funktionieren."]
[]
[]
[]
[]
[]
[]
[]
[]
[]
[]
[]
[]
[]
[]
[]
["Falls Makros trotzdem nicht angenommen werden:"]
["Datei / Optionen / Trust Center / Einstellungen für das Trust Center / Makroeinstellungen / alle Makros aktivieren, eventuell Datei schließen und neu öffnen."]
[]
[]
[]
[]
[]
[]
[]
[]
[]
[]
[]
[]
[]
[]
[]
[]
[]
[]
[]
[]
[]
[]
[]
[]
[]
[]
[]
[]
[]
[]
[]
[]
[]
[]
[]
[]
[]
[]
[]
["Wenn Sie die Arbeitsmappe, die Sie ursprünglich von uns erhalten haben, erstmalig öffnen, so werden Sie aufgefordert, den Namen des EUPs, für den Sie eine Datei erstellen wollen, und den EUP-Verantwortlichen anzugeben. Die Datei erhält dann automatisch den Namen des EUPs (Mit vorangestelltem \"EUP \" und nachgestellter Dateinamenerweiterung \"xlsm\", während die Ursprungsdatei zwecks Schaffung weiterer EUPs unverändert bleibt.\n\nFalls Sie eine Arbeitsmappe \"EUP …\" öffnen, die Sie bereits früher gespeichert haben, wird diese bisherige Version beim Öffnen automatisch im aktuellen Ordner unter \"Altversion …\" gesichert. Sie können also an Ihrem EUP weiterarbeiten, ohne befürchten zu müssen, dass Ihre bisherigen Einträge verloren gehen.\n\nSie können Ihre Datei jederzeit sichern (Optionen/Zwischensicherung) oder SpeichernBeenden/Zwischensicherung), wobei der Dateiname der Sicherung (im aktuellen Ordner) automatisch gewählt wird (Dateiname_Datum_Uhrzeit.xlsm).\n"]
[]
["Erklärung der Programmlogik:"]
["Beim Einstieg und später immer dann wenn eine der Zellen angeklickt wird (durch Klick mit der linken oder rechten Maustaste, wobei man unter \"Optionen\" einstellen kann, dass die linke Maustaste das Menü nicht öffnet), öffnet sich das Hauptmenü. Die nachfolgende Aktion bezieht sich dann in der Regel auf die eben angewählte Zelle oder Zeile, sofern Sie nicht in der danach angezeigten Eingabemaske einen anderern Bereich auswählen. "]
["Bearbeiten","Eingabeformuler zur Bearbeitung der aktuellen Zeile inklusive Zeitplan, Zuständigkeit etc.\nNähere Informationen über das jeweilige Eingabefeld werden unten angezeigt, wenn die Maus über das Eingabefeld bewegt wird.\nFalls für eine Aktivität kein Code bestimmt wird, wird dieser automatisch eingefügt und bei Bedarf eine neue Nummerierung durchgeführt."]
["Einfügen vor","Einfügen eines neuen Ziels, einer neuen Maßnahme oder eines neuen Teilvorhabens, und zwar vor der aktuell angewählten Aktivität. Im nun aufgehenden Dialog kann die Position noch korrigiert werden."]
["Einfügen nach","wie \"Einfügen vor\", aber es wird eben nach der aktuell angewählten Aktivität eingefügt."]
["Löschen","Entfernen des markierten Ziels, der markierten Maßnahme oder des markierten Teilvorhabens"]
["Reihenfolge ändern","Hinauf- oder Hinunterrücken des markierten Ziels, der markierten Maßnahme oder des markierten Teilvorhabens (Änderung der Reihenfolge)"]
["Codes aktualisieren","Neue Nummerierung der Kurzbezeichnungen für die Aktivitäten (also Z1 … M1 … T1…) gemäß der aktuellen Struktur"]
["Optionen","Hier können die Bezeichnung des EUPs und der Name des dafür Verantwortlichen geändert werden. Außerdem können verschiedene Einstellungen gewählt werden, z.B. Vollbildschirm, Ein- und Ausblenden der Bearbeitungsleiste, linke Maustaste eröffnet das Hauptmenü (oder markiert nur die Zelle)."]
["Drucken","Es kann ein ganzer EUP, ein Ziel oder eine Maßnahme ausgedruckt werden. Die Auswahl eines Zieles oder einer Maßnahme erfolgt wie beim Einfügen oder beim Entfernen einer Aktivität. Danach können die für den Ausdruck gewünschten Spalten sowie einige andere Optionen ausgewählt werden. Druckvorschau ist ebenso möglich wie sofortiger Druck, wobei die gewohnten Office-Dialogfenster benutzt werden."]
["Speichern / Beenden","Die Datei kann unter demselben oder einem anderen Namen gespeichert werden, wahlweise mit oder ohne Schließen der Datei. Der Dateiname sollte mit \"EUP \" beginnen. Bitte verwenden Sie diese Speicherfunktionen anstatt des normalen Excel-Speichermenüs, damit die EUP-Dateien die richtigen Namen zum Zusammenfassen erhalten."]
[]
[]
[]
[]
[]
[]
[]
[]
[]
[]
[]
[]
[]
[]
[]
[]
[]
[]
[]
[]
[]
[]
[]
[]
[]
[]
[]
["Das Tabellenblatt \"EUP\" darf nicht umbenannt werden, da sich viele Programmroutinen darauf beziehen."]

{"sheet":"Tabelle1","index":4,"n_rows":32,"n_cols":4,"rows_kept":32,"cut":false,"hidden":true,"merged":[]}
["EUP-Blatt leer mit Datei öffnen",45,"erledigt"]
["div. Menüs u. Beschriftungen ausblenden",30,"erledigt"]
["Einzel-EUP-Blätter kriegen ein Extratabellenblatt für 1. mittel- und langfristige Entwicklungsziele sowie 2. Rückblick und Iststand",5,"erledigt"]
["EUP-Verantwortlicher muss erfasst werden. Sammelblatt: Spalte 1 EUP-Name, Spalte 2 Verantwortlicher",30,"erledigt"]
["Masterdatei EUP - Button Holen und Neu:\nHolen: lädt Blätter aus bestehender Datei, kopiert diese bestehende, speichert EUP-Datei unter dem Namen der geladenen Datei, setzt Focus auf neue, schließt ursprüngl. EUP-Datei (ohne Speichern)\nNeu: speichert sofort unter abgefragtem Namen, schließt Masterdatei"]
["am Ende trotzdem speichern",null,"erledigt","Musterdatei für EinzelEUPS mit V-Version   EinzelEUP_V1.0"]
["Löschen nur für gesamte EUPs in der Sammeldatei",null,"erledigt","4711-Dateien für die jeweiligen EUPS --- EUP 01 - Lehrervergnügungen.xlsm          "]
["Ausrichtung und Rahmen vor Speicherung",null,"erledigt","Sammeldatei - mit Versionsnummer SammelEUP_V1.0"]
["Status mit Chronologie-Funktion",null,"fehlt noch","Updateprogramm EUPUpdate_V1.0"]
[]
["Sonntag 8.4. was Aktuelles mailen","2018-04-08"]
["michael@hollauf@at"]
["Test bei Zugsfahrt","2018-04-09"]
["Rückmeldungen per Mail","2018-04-09"]
[]
[]
["Software eingefroren","2018-04-11","Abend"]
["2 Dateien ","2018-04-12","Früh"]
[]
[]
["ausgedrucktes Handout Trixi + Michael"]
["Powerpoint Trixi + Michael"]
[]
["Ich: Screencast","2018-04-16"]
[]
["SQ-Workshop Bergheidengasse","2018-04-19"]
[]
[]
[]
[]
[".EnableSelection = xlUnlockedCells"]
["With Worksheets(1) .EnableSelection = xlNoSelection .Protect Contents:=True, UserInterfaceOnly:=True End With"]

{"sheet":"Tabelle2","index":5,"n_rows":32,"n_cols":7,"rows_kept":32,"cut":false,"hidden":true,"merged":[]}
[]
[]
[]
[null,"2018-04-01","2018-03-01","augustus",{"$f":"chronologie(B4,C4,D4,\"ja\")","v":""}]
[null,{"$f":"Datumsstandard(B4)","v":"201804"},{"$f":"Datumsstandard(C4)","v":"201803"},"201808",{"$f":"chronologie(B5,C5,D5,\"ja\")","v":"ja"}]
[null,{"$f":"B5<C5","v":false}]
[]
[null,{"$f":"istdatum(B5)","v":"201806"},{"$f":"istdatum(C5)","v":"201806"},"201806"]
[]
["2015-11-01",{"$f":"Datumsstandard(A10)","v":"201511"},null,null,{"$f":"Monatzahl(A10)","v":0}]
["2017-10-01",{"$f":"Datumsstandard(A11)","v":"201710"}]
["2017-11-01","201711",null,null,"2019-02-01","2019-03-01","2019-05-01"]
["apr","201804",null,null,"?"]
["2012-01-01","201201",null,null,{"$f":"Datumsstandard(E12)","v":"201902"}]
["Julius","201807"]
["2000-12-01","200012",null,null,{"$f":"datumsvergleich(E12,E13,\"ja\")","v":"ja"}]
["1.13.2010","201001",null,null,{"$f":"status(E12,E13,F12,F13,G12,G13)","v":"in Planung"},{"$f":"Datumsstandard(F13)","v":"209901"}]
[null,"209901"]
[]
[]
[null,{"$f":"istdatum(1)","v":"201806"}]
[]
[]
[]
[]
[]
[null,null,null,null,{"$f":"gesamtzeit()","v":"180628_065911"}]
[null,":",null,null,{"$f":"datumdivers()","v":{"$error":"#NAME?"}}]
[null,null,null,null,{"$error":"#NAME?"}]
[null,null,null,null,{"$error":"#NAME?"}]
[null,"#",null,null,{"$error":"#NAME?"}]
[null,{"$f":"REPLACE(B28,B29,B30,B31)","v":{"$error":"#VALUE!"}},null,null,{"$error":"#NAME?"}]

{"sheet":"Parameter","index":6,"n_rows":14,"n_cols":2,"rows_kept":14,"cut":false,"hidden":true,"merged":[]}
[]
["Bearbeitungszeile gewünscht",false]
["Vollschirm gewünscht",true]
[null,true]
[null,true]
["Letzte aktuelle Eintragung","?"]
["Zeile",1]
["Spalte",1]
[]
["Verantwortlich","Judith Dinhobl"]
["Linkstaste öffnet Dialog",false]
["Speicher Linkstaste",false]
[]
["ferngesteuert",false]